fUSD/lending_fUSD_20240516
["ID","MTS","AMOUNT","RATE_DAILY","PERIOD"]
[327160381,1715866236747,-500.0,0.00010979,2]
[327160382,1715866236760,-649.78,0.00010979,2]
[327160383,1715866236769,-508.47,0.00010979,2]
[327160384,1715866236778,-500.0,0.00010979,2]
[327160385,1715866236787,-620.32,0.00010979,2]
[327160386,1715866236796,-401.69883913,0.00010979,2]
[327160387,1715866236805,-500.0,0.00010979,2]
[327160388,1715866236815,-500.0,0.00010979,2]
[327160389,1715866236824,-209.48830826,0.00010979,2]
[327160390,1715866236833,-500.0,0.00010979,2]
[327160391,1715866236843,-500.0,0.00010979,2]
[327160392,1715866236852,-500.0,0.00010979,2]
[327160393,1715866236861,-500.0,0.00010979,2]
[327160394,1715866236871,-554.19,0.00010979,2]
[327160395,1715866236881,-500.0,0.00010979,2]
[327160396,1715866236890,-500.0,0.00010979,2]
[327160397,1715866236900,-500.0,0.00010979,2]
[327160398,1715866236909,-569.43,0.00010979,2]
[327160399,1715866236918,-500.0,0.00010979,2]
[327160400,1715866236927,-500.0,0.00010979,2]
[327160401,1715866236936,-199.48262384,0.00010979,2]
[327160402,1715866236946,-500.0,0.00010979,2]
[327160403,1715866236955,-500.0,0.00010979,2]
[327160404,1715866236965,-500.0,0.00010979,2]
[327160405,1715866236974,-535.99,0.00010979,2]
[327160406,1715866236984,-512.5876465,0.00010979,2]
[327160407,1715866236993,-519.27,0.00010979,2]
[327160408,1715866237003,-328.62136323,0.00010979,2]
[327160409,1715866237013,-642.1022745,0.00010979,2]
[327160410,1715866237023,-349.36,0.00010979,2]
[327160411,1715866237033,-510.9287127,0.00010979,2]
[327160412,1715866237043,-458.83471237,0.00010979,2]
[327160413,1715866237053,-514.97575938,0.00010979,2]
[327160414,1715866237063,-500.0,0.00010979,2]
[327160415,1715866237073,-500.0,0.00010979,2]
[327160416,1715866237082,-2004.86892368,0.00010979,2]
[327160417,1715866237092,-500.0,0.00010979,2]
[327160418,1715866237102,-508.34674317,0.00010979,2]
[327160419,1715866237111,-500.0,0.00010979,2]
[327160420,1715866237121,-500.0,0.00010979,2]
[327160421,1715866237131,-500.0,0.00010979,2]
[327160422,1715866237140,-513.73767505,0.00010979,2]
[327160423,1715866237150,-500.0,0.00010979,2]
[327160424,1715866237159,-500.0,0.00010979,2]
[327160425,1715866237170,-500.0,0.00010979,2]
[327160426,1715866237183,-500.0,0.00010979,2]
[327160427,1715866237192,-843.12,0.00010979,2]
[327160428,1715866237202,-511.78334467,0.00010979,2]
[327160429,1715866237213,-594.09,0.00010979,2]
[327160430,1715866237222,-500.0,0.00010979,2]
[327160431,1715866237232,-500.0,0.00010979,2]
[327160432,1715866237241,-375.12325086,0.00010979,2]
[327160433,1715866237251,-500.0,0.00010979,2]
[327160434,1715866237267,-500.0,0.00010979,2]
[327160435,1715866237276,-500.0,0.00010979,2]
[327160436,1715866237285,-500.0,0.00010979,2]
[327160437,1715866237294,-500.0,0.00010979,2]
[327160438,1715866237304,-500.0,0.00010979,2]
[327160439,1715866237314,-190854.0682,0.0001098,2]
[327160440,1715866237324,-18414.22082268,0.0001098,2]
[327160441,1715866237334,-161.12288685,0.0001098,2]
[327160442,1715866237344,-185.57992379,0.0001098,2]
[327160443,1715866237355,-2889.27282523,0.0001098,2]
[327160444,1715866237364,-1000.0,0.00010985,2]
[327160445,1715866237374,-500.0,0.00010985,2]
[327160446,1715866237384,-500.0,0.00010998,2]
[327160447,1715866237394,-500.0,0.00010998,2]
[327160448,1715866237404,-500.0,0.00010999,2]
[327160449,1715866237413,-500.0,0.00010999,2]
[327160450,1715866237423,-372.69119391,0.00010999,2]
[327160451,1715866237433,-500.0,0.00010999,2]
[327160452,1715866237442,-500.0,0.00010999,2]
[327160453,1715866237452,-500.0,0.00010999,2]
[327160454,1715866237461,-843.71,0.00010999,2]
[327160455,1715866237471,-391.22474978,0.00010999,2]
[327160456,1715866237480,-1027.34,0.00010999,2]
[327160457,1715866237490,-500.0,0.00010999,2]
[327160458,1715866237500,-500.0,0.00010999,2]
[327160459,1715866237509,-548.18,0.00010999,2]
[327160460,1715866237518,-600.15,0.00010999,2]
[327160461,1715866237529,-500.0,0.00011,2]
[327160462,1715866237539,-392.35663692,0.00011059,2]
[327160463,1715866237548,-518.80344559,0.00011059,2]
[327160464,1715866237558,-500.0,0.00011059,2]
[327160465,1715866237567,-504.27768084,0.00011059,2]
[327160466,1715866237577,-494.62749046,0.00011059,2]
[327160467,1715866237587,-522.07410347,0.00011059,2]
[327160468,1715866237596,-175.75740478,0.00011059,2]
[327160469,1715866237606,-200.60510361,0.00011059,2]
[327160470,1715866237615,-507.09375836,0.00011059,2]
[327160471,1715866237624,-500.0,0.00011059,2]
[327160472,1715866237634,-310.35709105,0.00011059,2]
[327160473,1715866237644,-510.76259586,0.00011059,2]
[327160474,1715866237653,-365.87237198,0.00011059,2]
[327160475,1715866237663,-500.0,0.00011059,2]
[327160476,1715866237672,-649.19370647,0.00011059,2]
[327160477,1715866237681,-167.37,0.00011062,2]
[327160478,1715866237691,-500.0,0.00011062,2]
[327160479,1715866237701,-500.0,0.00011066,2]
[327160480,1715866237711,-500.0,0.00011066,2]
[327160481,1715866237720,-500.0,0.00011066,2]
[327160482,1715866237729,-500.0,0.00011066,2]
[327160483,1715866237739,-500.0,0.00011066,2]
[327160484,1715866237749,-843.71,0.00011066,2]
[327160485,1715866237759,-1027.34,0.00011066,2]
[327160486,1715866237769,-514.73190307,0.00011066,2]
[327160487,1715866237778,-600.15,0.00011066,2]
[327160488,1715866237788,-500.53468343,0.00011067,2]
[327160489,1715866237797,-500.0,0.00011067,2]
[327160490,1715866237807,-500.0,0.00011067,2]
[327160491,1715866237817,-500.0,0.00011067,2]
[327160492,1715866237826,-500.0,0.00011067,2]
[327160493,1715866237836,-500.0,0.00011067,2]
[327160494,1715866237845,-513.91,0.00011067,2]
[327160495,1715866237855,-843.71,0.00011067,2]
[327160496,1715866237865,-1027.34,0.00011067,2]
[327160497,1715866237874,-600.15,0.00011067,2]
[327160498,1715866237884,-500.0,0.00011067,2]
[327160499,1715866237894,-500.0,0.00011071,2]
[327160500,1715866237903,-500.0,0.00011071,2]
[327160501,1715866237914,-500.0,0.00011071,2]
[327160502,1715866237923,-500.0,0.00011071,2]
[327160503,1715866237932,-500.0,0.00011071,2]
[327160504,1715866237942,-843.71,0.00011071,2]
[327160505,1715866237951,-1027.34,0.00011071,2]
[327160506,1715866237961,-600.15,0.00011071,2]
[327160507,1715866237971,-500.0,0.00011071,2]
[327160508,1715866237981,-500.0,0.00011076,2]
[327160509,1715866237990,-4274.94146462,0.00011077,2]
[327160510,1715866238000,-280.6117818,0.00011077,2]
[327160511,1715866238009,-14342.07565,0.00011077,2]
[327160512,1715866238019,-366.4006282,0.00011077,2]
[327160513,1715866238028,-625.90376964,0.00011077,2]
[327160514,1715866238038,-615.452466,0.00011077,2]
[327160515,1715866238048,-1540.4255301,0.00011077,2]
[327160516,1715866238058,-156.92613982,0.00011077,2]
[327160517,1715866238067,-308.74644507,0.00011077,2]
[327160518,1715866238077,-685.9229044,0.00011077,2]
[327160519,1715866238086,-260.48203453,0.00011077,2]
[327160520,1715866238096,-155.0,0.00011077,2]
[327160521,1715866238106,-155.0,0.00011077,2]
[327160522,1715866238115,-523.11653558,0.00011077,2]
[327160523,1715866238125,-1244.2402654,0.00011078,2]
[327160524,1715866238135,-975.43766607,0.00011078,2]
[327160525,1715866238144,-217.27337615,0.00011078,2]
[327160526,1715866238153,-409.53251773,0.00011078,2]
[327160527,1715866238163,-167.79510235,0.00011078,2]
[327160528,1715866238177,-321.34456172,0.00011078,2]
[327160529,1715866238188,-782.26025222,0.00011078,2]
[327160530,1715866238198,-262.92731062,0.00011078,2]
[327160531,1715866238208,-195.96696143,0.00011078,2]
[327160532,1715866238219,-174.87662818,0.00011078,2]
[327160533,1715866238231,-1264.0340538,0.00011078,2]
[327160534,1715866238241,-156.63582093,0.00011078,2]
[327160535,1715866238251,-159.98075539,0.00011078,2]
[327160536,1715866238264,-155.91328348,0.00011078,2]
[327160537,1715866238274,-517.86261004,0.00011078,2]
[327160557,1715866238446,-155.23343808,0.00011078,2]
[327160558,1715866238456,-189.61661566,0.00011078,2]
[327160559,1715866238466,-194.36466099,0.00011078,2]
[327160560,1715866238476,-155.0,0.00011078,2]
[327160561,1715866238486,-318.59270315,0.00011078,2]
[327160562,1715866238496,-155.3047756,0.00011078,2]
[327160563,1715866238505,-155.0,0.00011078,2]
[327160564,1715866238516,-253.9256815,0.00011078,2]
[327160565,1715866238526,-226.76655076,0.00011078,2]
[327160566,1715866238535,-1403.32813573,0.00011078,2]
[327160567,1715866238545,-6136.91024807,0.00011078,2]
[327160568,1715866238555,-155.18891954,0.00011078,2]
[327160569,1715866238565,-473.24239097,0.00011078,2]
[327160570,1715866238574,-1088.88354224,0.00011078,2]
[327160571,1715866238584,-242.00430088,0.00011078,2]
[327160572,1715866238594,-837.03904286,0.00011078,2]
[327160573,1715866238605,-155.0,0.00011078,2]
[327160574,1715866238615,-438.55520697,0.00011078,2]
[327160575,1715866238626,-534.77769943,0.00011078,2]
[327160576,1715866238636,-155.55226398,0.00011078,2]
[327160577,1715866238646,-155.0,0.00011078,2]
[327160578,1715866238656,-273.65203596,0.00011078,2]
[327160579,1715866238666,-261.60179357,0.00011078,2]
[327160580,1715866238676,-205.83004919,0.00011078,2]
[327160581,1715866238686,-824.71772934,0.00011078,2]
[327160582,1715866238696,-500.0,0.00011078,2]
[327160583,1715866238707,-500.0,0.00011078,2]
[327160584,1715866238717,-500.0,0.00011078,2]
[327160585,1715866238727,-500.0,0.00011078,2]
[327160586,1715866238737,-500.0,0.00011078,2]
[327160587,1715866238746,-509.38833419,0.00011078,2]
[327160588,1715866238756,-508.00798695,0.00011078,2]
[327160589,1715866238768,-500.0,0.00011078,2]
[327160590,1715866238778,-500.0,0.00011078,2]
[327160591,1715866238788,-500.0,0.00011078,2]
[327160592,1715866238797,-500.0,0.00011078,2]
[327160593,1715866238807,-500.0,0.00011078,2]
[327160594,1715866238816,-500.0,0.00011078,2]
[327160595,1715866238825,-500.0,0.00011078,2]
[327160596,1715866238836,-500.0,0.00011078,2]
[327160597,1715866238846,-534.4756839,0.00011078,2]
[327160598,1715866238855,-500.0,0.00011078,2]
[327160599,1715866238865,-539.0301609,0.00011078,2]
[327160600,1715866238875,-534.27288216,0.00011078,2]
[327160601,1715866238884,-500.0,0.00011078,2]
[327160602,1715866238894,-500.0,0.00011078,2]
[327160603,1715866238903,-500.0,0.00011078,2]
[327160604,1715866238913,-500.0,0.00011078,2]
[327160605,1715866238923,-505.77944516,0.00011078,2]
[327160606,1715866238932,-500.0,0.00011078,2]
[327160607,1715866238941,-150.0,0.00011078,2]
[327160608,1715866238951,-500.0,0.00011078,2]
[327160609,1715866238961,-507.8704334,0.00011078,2]
[327160610,1715866238972,-5000.0,0.00011078,2]
[327160611,1715866238983,-500.0,0.00011078,2]
[327160612,1715866238994,-500.0,0.00011078,2]
[327160613,1715866239003,-500.0,0.00011078,2]
[327160614,1715866239016,-500.0,0.00011078,2]
[327160615,1715866239025,-500.0,0.00011078,2]
[327160616,1715866239035,-510.77935046,0.00011078,2]
[327160617,1715866239045,-500.0,0.00011078,2]
[327160618,1715866239054,-531.8790226,0.00011078,2]
[327160619,1715866239064,-504.72595063,0.00011078,2]
[327160620,1715866239073,-508.86628545,0.00011078,2]
[327160621,1715866239083,-500.0,0.00011078,2]
[327160622,1715866239093,-535.57005951,0.00011078,2]
[327160623,1715866239102,-500.0,0.00011078,2]
[327160624,1715866239112,-500.0,0.00011078,2]
[327160625,1715866239122,-506.46385013,0.00011078,2]
[327160626,1715866239132,-500.0,0.00011078,2]
[327160627,1715866239142,-500.0,0.00011078,2]
[327160628,1715866239151,-500.0,0.00011078,2]
[327160629,1715866239161,-507.97643934,0.00011078,2]
[327160630,1715866239174,-500.0,0.00011078,2]
[327160631,1715866239187,-843.71,0.00011078,2]
[327160632,1715866239197,-505.98441816,0.00011078,2]
[327160633,1715866239207,-500.0,0.00011078,2]
[327160634,1715866239219,-507.48226951,0.00011078,2]
[327160635,1715866239229,-504.84717174,0.00011078,2]
[327160636,1715866239239,-510.19941304,0.00011078,2]
[327160637,1715866239249,-504.71427429,0.00011078,2]
[327160638,1715866239259,-500.0,0.00011078,2]
[327160639,1715866239270,-497.06249531,0.00011078,2]
[327160640,1715866239281,-502.84801673,0.00011078,2]
[327160641,1715866239291,-506.80137322,0.00011078,2]
[327160642,1715866239301,-518.33452741,0.00011078,2]
[327160643,1715866239311,-504.42189491,0.00011078,2]
[327160644,1715866239321,-500.0,0.00011078,2]
[327160645,1715866239331,-510.19653349,0.00011078,2]
[327160646,1715866239340,-514.22524459,0.00011078,2]
[327160647,1715866239350,-500.0,0.00011078,2]
[327160648,1715866239359,-507.98768071,0.00011078,2]
[327160649,1715866239369,-506.88239078,0.00011078,2]
[327160650,1715866239379,-500.0,0.00011078,2]
[327160651,1715866239389,-400.73321834,0.00011078,2]
[327160652,1715866239399,-500.0,0.00011078,2]
[327160653,1715866239410,-507.45771199,0.00011078,2]
[327160654,1715866239419,-500.0,0.00011078,2]
[327160655,1715866239429,-500.0,0.00011078,2]
[327160656,1715866239439,-1027.34,0.00011078,2]
[327160657,1715866239449,-500.0,0.00011078,2]
[327160658,1715866239459,-504.85922279,0.00011078,2]
[327160659,1715866239468,-507.82740307,0.00011078,2]
[327160660,1715866239478,-500.0,0.00011078,2]
[327160661,1715866239487,-500.0,0.00011078,2]
[327160662,1715866239497,-213.48855172,0.00011078,2]
[327160663,1715866239507,-508.79013405,0.00011078,2]
[327160664,1715866239518,-500.0,0.00011078,2]
[327160665,1715866239528,-509.3101799,0.00011078,2]
[327160666,1715866239538,-500.0,0.00011078,2]
[327160667,1715866239548,-500.0,0.00011078,2]
[327160668,1715866239558,-500.0,0.00011078,2]
[327160669,1715866239568,-500.0,0.00011078,2]
[327160670,1715866239578,-600.15,0.00011078,2]
[327160671,1715866239588,-500.0,0.00011078,2]
[327160672,1715866239598,-384.42,0.00011078,2]
[327160673,1715866239613,-284.28,0.00011078,2]
[327160674,1715866239622,-500.0,0.00011078,2]
[327160675,1715866239632,-500.0,0.00011078,2]
[327160676,1715866239643,-500.0,0.00011078,2]
[327160677,1715866239653,-500.0,0.00011078,2]
[327160678,1715866239663,-293.64,0.00011078,2]
[327160679,1715866239673,-500.0,0.00011078,2]
[327160680,1715866239683,-150.0,0.00011078,2]
[327160681,1715866239692,-500.0,0.00011078,2]
[327160682,1715866239702,-500.0,0.00011078,2]
[327160683,1715866239712,-500.0,0.00011078,2]
[327160684,1715866239722,-500.0,0.00011078,2]
[327160686,1715866239732,-500.0,0.00011078,2]
[327160689,1715866239745,-574.56,0.00011078,2]
[327160691,1715866239755,-384.2,0.00011078,2]
[327160693,1715866239766,-500.0,0.00011078,2]
[327160695,1715866239775,-500.0,0.00011078,2]
[327160697,1715866239785,-500.0,0.00011078,2]
[327160699,1715866239795,-168.74,0.00011078,2]
[327160701,1715866239805,-329.07,0.00011078,2]
[327160703,1715866239815,-377.72,0.00011078,2]
[327160705,1715866239826,-309.59,0.00011078,2]
[327160707,1715866239837,-500.0,0.00011078,2]
[327160709,1715866239847,-500.0,0.00011078,2]
[327160711,1715866239858,-500.0,0.00011078,2]
[327160713,1715866239869,-843.12,0.00011078,2]
[327160715,1715866239880,-500.0,0.00011078,2]
[327160717,1715866239890,-183.63,0.00011078,2]
[327160719,1715866239900,-327.78479418,0.00011078,2]
[327160721,1715866239911,-500.0,0.00011078,2]
[327160723,1715866239922,-500.0,0.00011078,2]
[327160725,1715866239933,-500.0,0.00011078,2]
[327160727,1715866239944,-500.0,0.00011078,2]
[327160729,1715866239955,-500.0,0.00011078,2]
[327160731,1715866239966,-603.0,0.00011079,2]
[327160732,1715866239976,-155.0,0.00011079,2]
[327160733,1715866239987,-884.39312275,0.00011079,2]
[327160734,1715866239997,-68363.62295625,0.00011079,2]
[327160773,1715866240298,-155.0,9.2e-05,2]
[327160776,1715866240308,-1656.93388619,0.00010662,2]
[327160779,1715866240319,-615.9260052,0.0001069,2]
[327160782,1715866240330,-615.9260052,0.0001069,2]
[327160785,1715866240341,-615.9260052,0.0001069,2]
[327160788,1715866240352,-615.9260052,0.0001069,2]
[327160791,1715866240362,-615.9260052,0.0001069,2]
[327160795,1715866240372,-500.0,0.00011078,2]
[327160797,1715866240382,-1204.73608781,0.00011079,2]
[327160835,1715866240749,-7876.43527198,0.00011079,2]
[327160837,1715866240761,-562.34159793,0.00011079,2]
[327160840,1715866240773,-11946.99008438,0.00011079,2]
[327160842,1715866240784,-1075.9549519,0.00011079,2]
[327160844,1715866240796,-9472.80293214,0.00011079,2]
[327160846,1715866240807,-3219.66866809,0.00011079,2]
[327160855,1715866240878,-615.9260052,0.0001069,2]
[327160857,1715866240887,-615.9260052,0.0001069,2]
[327160859,1715866240896,-213.37497585,0.00011079,2]
[327160861,1715866240908,-2657.2665935,0.00011079,2]
[327160903,1715866241303,-615.9260052,0.0001069,2]
[327160905,1715866241312,-615.9260052,0.0001069,2]
[327160906,1715866241322,-615.9260052,0.0001069,2]
[327160909,1715866241332,-615.9260052,0.0001069,2]
[327160910,1715866241341,-615.9260052,0.0001069,2]
[327160912,1715866241351,-615.9260052,0.0001069,2]
[327160914,1715866241361,-615.9260052,0.0001069,2]
[327160917,1715866241370,-615.9260052,0.0001069,2]
[327160918,1715866241380,-572.5919584,0.0001069,2]
[327160921,1715866241391,-43.3340468,0.0001069,2]
[327160923,1715866241400,-615.9260052,0.0001069,2]
[327160925,1715866241410,-615.9260052,0.0001069,2]
[327160927,1715866241419,-615.9260052,0.0001069,2]
[327160929,1715866241429,-615.9260052,0.0001069,2]
[327160931,1715866241438,-615.9260052,0.00010719,2]
[327160932,1715866241448,-615.9260052,0.0001079,2]
[327160935,1715866241457,-615.9260052,0.0001079,2]
[327160936,1715866241467,-615.9260052,0.0001079,2]
[327160938,1715866241476,-615.9260052,0.0001079,2]
[327160941,1715866241486,-615.9260052,0.0001079,2]
[327160942,1715866241495,-615.9260052,0.0001079,2]
[327160944,1715866241504,-615.9260052,0.0001079,2]
[327160946,1715866241516,-615.9260052,0.0001079,2]
[327160948,1715866241524,-615.9260052,0.0001079,2]
[327160950,1715866241533,-615.9260052,0.0001079,2]
[327160952,1715866241542,-615.9260052,0.0001079,2]
[327160954,1715866241551,-615.9260052,0.0001079,2]
[327160956,1715866241560,-500.0,0.00010978,2]
[327160958,1715866241569,-166.78278404,0.00011069,2]
[327160960,1715866241579,-11291.10234749,0.00011079,2]
[327160967,1715866241637,-615.9260052,0.0001079,2]
[327160969,1715866241646,-615.9260052,0.0001079,2]
[327160971,1715866241655,-615.9260052,0.0001079,2]
[327160973,1715866241665,-615.9260052,0.0001079,2]
[327160975,1715866241674,-11741.53853848,0.00011079,2]
[327160977,1715866241683,-500.0,0.00011079,2]
[327160979,1715866241692,-500.0,0.00011079,2]
[327160981,1715866241701,-379.79966493,0.00011079,2]
[327160983,1715866241711,-500.0,0.00011079,2]
[327160985,1715866241720,-500.0,0.00011079,2]
[327160987,1715866241729,-500.0,0.00011079,2]
[327160989,1715866241739,-500.0,0.00011079,2]
[327160991,1715866241748,-500.0,0.00011079,2]
[327160993,1715866241757,-500.0,0.00011079,2]
[327160995,1715866241768,-500.0,0.00011079,2]
[327160997,1715866241778,-500.0,0.00011079,2]
[327160999,1715866241787,-500.0,0.00011079,2]
[327161001,1715866241796,-500.0,0.00011079,2]
[327161003,1715866241805,-500.0,0.00011079,2]
[327161005,1715866241814,-500.0,0.00011079,2]
[327161007,1715866241824,-500.0,0.00011079,2]
[327161009,1715866241834,-500.0,0.00011079,2]
[327161011,1715866241843,-500.0,0.00011079,2]
[327161013,1715866241853,-500.0,0.00011079,2]
[327161015,1715866241862,-500.0,0.00011079,2]
[327161016,1715866241871,-500.0,0.00011079,2]
[327161017,1715866241880,-500.0,0.00011079,2]
[327161018,1715866241890,-500.0,0.00011079,2]
[327161020,1715866241900,-500.0,0.00011079,2]
[327161022,1715866241909,-500.0,0.00011079,2]
[327161024,1715866241918,-207.18,0.00011079,2]
[327161026,1715866241927,-500.0,0.00011079,2]
[327161028,1715866241936,-500.0,0.00011079,2]
[327161030,1715866241945,-500.0,0.00011079,2]
[327161032,1715866241955,-500.0,0.00011079,2]
[327161034,1715866241964,-500.0,0.00011079,2]
[327161036,1715866241973,-500.0,0.00011079,2]
[327161038,1715866241982,-172.70144832,0.00011079,2]
[327161040,1715866241991,-500.0,0.00011079,2]
[327161042,1715866242001,-500.0,0.00011079,2]
[327161044,1715866242011,-500.0,0.00011079,2]
[327161046,1715866242020,-500.0,0.00011079,2]
[327161048,1715866242030,-500.0,0.00011079,2]
[327161050,1715866242039,-500.0,0.00011079,2]
[327161052,1715866242048,-500.0,0.00011079,2]
[327161054,1715866242057,-500.0,0.00011079,2]
[327161056,1715866242067,-500.0,0.00011079,2]
[327161058,1715866242076,-563.12,0.00011079,2]
[327161059,1715866242085,-555.64315195,0.00011079,2]
[327161060,1715866242094,-500.0,0.00011079,2]
[327161061,1715866242104,-500.0,0.00011079,2]
[327161062,1715866242113,-428.46,0.00011079,2]
[327161063,1715866242122,-197.88,0.00011079,2]
[327161064,1715866242131,-310.98,0.00011079,2]
[327161065,1715866242140,-500.0,0.00011079,2]
[327161066,1715866242150,-500.0,0.00011079,2]
[327161067,1715866242158,-254.25530691,0.00011079,2]
[327161068,1715866242168,-5094.13352555,0.00011079,2]
[327161069,1715866242183,-500.0,0.00011079,2]
[327161070,1715866242193,-342.56674424,0.00011079,2]
[327161071,1715866242203,-500.0,0.00011079,2]
[327161073,1715866242214,-461.2,0.00011079,2]
[327161075,1715866242223,-500.0,0.00011079,2]
[327161077,1715866242232,-500.0,0.00011079,2]
[327161078,1715866242242,-500.0,0.00011079,2]
[327161079,1715866242251,-500.0,0.00011079,2]
[327161080,1715866242263,-500.0,0.00011079,2]
[327161081,1715866242271,-500.0,0.00011079,2]
[327161082,1715866242280,-505.54093327,0.00011079,2]
[327161083,1715866242289,-500.0,0.00011079,2]
[327161084,1715866242298,-500.0,0.00011079,2]
[327161085,1715866242307,-500.0,0.00011079,2]
[327161086,1715866242316,-500.0,0.00011079,2]
[327161087,1715866242326,-396.88,0.00011079,2]
[327161088,1715866242335,-500.0,0.00011079,2]
[327161089,1715866242345,-500.0,0.00011079,2]
[327161090,1715866242354,-378.38,0.00011079,2]
[327161091,1715866242363,-500.0,0.00011079,2]
[327161092,1715866242372,-500.0,0.00011079,2]
[327161093,1715866242381,-500.0,0.00011079,2]
[327161094,1715866242390,-500.0,0.00011079,2]
[327161095,1715866242400,-500.0,0.00011079,2]
[327161096,1715866242409,-500.0,0.00011079,2]
[327161097,1715866242418,-302.94609602,0.00011079,2]
[327161098,1715866242427,-500.0,0.00011079,2]
[327161099,1715866242437,-500.0,0.00011079,2]
[327161101,1715866242447,-500.0,0.00011079,2]
[327161103,1715866242455,-634.68,0.00011079,2]
[327161105,1715866242464,-500.0,0.00011079,2]
[327161107,1715866242474,-843.71,0.00011079,2]
[327161109,1715866242483,-843.71,0.00011079,2]
[327161111,1715866242492,-843.71,0.00011079,2]
[327161113,1715866242502,-843.71,0.00011079,2]
[327161115,1715866242514,-843.71,0.00011079,2]
[327161117,1715866242523,-843.71,0.00011079,2]
[327161119,1715866242532,-843.71,0.00011079,2]
[327161121,1715866242541,-843.71,0.00011079,2]
[327161123,1715866242550,-843.71,0.00011079,2]
[327161125,1715866242558,-500.0,0.00011079,2]
[327161127,1715866242568,-843.71,0.00011079,2]
[327161129,1715866242577,-500.0,0.00011079,2]
[327161131,1715866242586,-843.71,0.00011079,2]
[327161133,1715866242596,-511.72,0.00011079,2]
[327161135,1715866242606,-843.71,0.00011079,2]
[327161137,1715866242615,-843.71,0.00011079,2]
[327161139,1715866242625,-843.71,0.00011079,2]
[327161141,1715866242634,-843.71,0.00011079,2]
[327161143,1715866242643,-843.71,0.00011079,2]
[327161145,1715866242653,-843.71,0.00011079,2]
[327161147,1715866242662,-843.71,0.00011079,2]
[327161149,1715866242671,-843.73,0.00011079,2]
[327161151,1715866242681,-500.0,0.00011079,2]
[327161153,1715866242692,-500.0,0.00011079,2]
[327161155,1715866242701,-500.0,0.00011079,2]
[327161157,1715866242712,-500.0,0.00011079,2]
[327161159,1715866242722,-500.0,0.00011079,2]
[327161161,1715866242732,-500.0,0.00011079,2]
[327161163,1715866242742,-500.0,0.00011079,2]
[327161165,1715866242751,-500.0,0.00011079,2]
[327161166,1715866242762,-302.4,0.00011079,2]
[327161167,1715866242771,-500.0,0.00011079,2]
[327161168,1715866242781,-382.52,0.00011079,2]
[327161169,1715866242790,-500.0,0.00011079,2]
[327161170,1715866242800,-500.0,0.00011079,2]
[327161171,1715866242809,-376.42,0.00011079,2]
[327161172,1715866242819,-202.8243946,0.00011079,2]
[327161173,1715866242830,-358.98140872,0.00011079,2]
[327161174,1715866242839,-543.69783746,0.00011079,2]
[327161175,1715866242849,-1027.34,0.00011079,2]
[327161176,1715866242859,-1027.34,0.00011079,2]
[327161177,1715866242869,-1027.34,0.00011079,2]
[327161178,1715866242880,-1027.34,0.00011079,2]
[327161179,1715866242889,-1027.34,0.00011079,2]
[327161180,1715866242899,-1027.34,0.00011079,2]
[327161181,1715866242908,-1027.34,0.00011079,2]
[327161182,1715866242918,-1027.34,0.00011079,2]
[327161183,1715866242928,-1027.34,0.00011079,2]
[327161184,1715866242938,-1027.34,0.00011079,2]
[327161185,1715866242950,-1027.34,0.00011079,2]
[327161186,1715866242959,-1027.34,0.00011079,2]